Workbook

Sheet Données
A1: Objectif de ventes annuelles | B1: 27000 | D1: Répartition des ventes de l'année
A2: Ventes planchas | D2: Janvier à mars | E2: avril à juin | F2: Juillet à septembre | G2: Octobre à décembre
A3: Prix de vente | B3: 230 | D3: 0.05 | E3: 0.55 | F3: 0.25 | G3: 0.15
A4: Prix d'achat | B4: 185
A6: Taux de TVA | B6: 0.196
A8: Charges fixes mensuelles
A9: Loyers | B9: 9000
A10: charges de personnel | B10: 35000
A11: Impôts et taxes | B11: 2500
A12: total des charges fixes | B12: =SUM(B9:B11) -> 46500
A14: Trésorerie initiale au 1 janvier | B14: 100000
A16: Délai de règlement (en mois)
A17: Clients ( 1 ou 2 ) | B17: 2
A18: fournisseurs | B18: 1
D22: planchas

Sheet ventes et encaissement
B1: Ventes
C3: janvier | D3: février | E3: mars | F3: avril | G3: mai | H3: juin | I3: juillet | J3: août | K3: septembre | L3: octobre | M3: novembre | N3: décembre
B4: ventes planchas
B5: Ventes ht | C5: =Données!$B$1*Données!$D$3*Données!$B$3 -> 310500 | D5: =Données!$B$1*Données!$D$3*Données!$B$3 -> 310500 | E5: =Données!$B$1*Données!$D$3*Données!$B$3 -> 310500 | F5: =Données!$B$1*Données!$E$3*Données!$B$3 -> 3415500 | G5: =Données!$B$1*Données!$E$3*Données!$B$3 -> 3415500 | H5: =Données!$B$1*Données!$E$3*Données!$B$3 -> 3415500 | I5: =Données!$B$1*Données!$F$3*Données!$B$3 -> 1552500 | J5: =Données!$B$1*Données!$F$3*Données!$B$3 -> 1552500 | K5: =Données!$B$1*Données!$F$3*Données!$B$3 -> 1552500 | L5: =Données!$B$1*Données!$G$3*Données!$B$3 -> 931500 | M5: =Données!$B$1*Données!$G$3*Données!$B$3 -> 931500 | N5: =Données!$B$1*Données!$G$3*Données!$B$3 -> 931500 | P5: =SUM(C5:O5) -> 18630000
B6: TVA | C6: =Données!$B$6*C5 -> 60858 | D6: =Données!$B$6*D5 -> 60858 | E6: =Données!$B$6*E5 -> 60858 | F6: =Données!$B$6*F5 -> 669438 | G6: =Données!$B$6*G5 -> 669438 | H6: =Données!$B$6*H5 -> 669438 | I6: =Données!$B$6*I5 -> 304290 | J6: =Données!$B$6*J5 -> 304290 | K6: =Données!$B$6*K5 -> 304290 | L6: =Données!$B$6*L5 -> 182574 | M6: =Données!$B$6*M5 -> 182574 | N6: =Données!$B$6*N5 -> 182574
B7: Ventes ttc | C7: =C5+C6 -> 371358 | D7: 371358 | E7: 371358 | F7: 4084938 | G7: 4084938 | H7: 4084938 | I7: 1856790 | J7: 1856790 | K7: 1856790 | L7: 1114074 | M7: 1114074 | N7: 1114074
B9: Encaissements
C11: janvier | D11: février | E11: mars | F11: avril | G11: mai | H11: juin | I11: juillet | J11: août | K11: septembre | L11: octobre | M11: novembre | N11: décembre | O11: janvier
A12: Ventes | B12: Janvier | C12: =IF(Données!B14=1466814,1114074,600000) -> 600000 | D12: =IF(Données!$B$17=1,C7,C12) -> 600000 | E12: =IF(Données!B17=2,C7,0) -> 371358
B13: Février | E13: =IF(Données!B17=1,D7,0) -> 0 | F13: =IF(Données!B17=2,D7,0) -> 371358
B14: Mars | F14: =IF(Données!B17=1,E7,0) -> 0 | G14: =IF(Données!B17=2,E7,0) -> 371358
B15: Avril | G15: =IF(Données!$B$17=1,F7,0) -> 0 | H15: =IF(Données!$B$17=2,F7,0) -> 4084938
B16: Mai | H16: =IF(Données!$B$17=1,G7,0) -> 0 | I16: =IF(Données!$B$17=2,G7,0) -> 4084938
B17: Juin | I17: =IF(Données!$B$17=1,H7,0) -> 0 | J17: =IF(Données!$B$17=2,H7,0) -> 4084938
B18: Juillet | J18: =IF(Données!$B$17=1,I7,0) -> 0 | K18: =IF(Données!$B$17=2,I7,0) -> 1856790
B19: Août | K19: =IF(Données!$B$17=1,J7,0) -> 0 | L19: =IF(Données!$B$17=2,J7,0) -> 1856790
B20: Septembre | L20: =IF(Données!$B$17=1,K7,0) -> 0 | M20: =IF(Données!$B$17=2,K7,0) -> 1856790
B21: Octobre | M21: =IF(Données!$B$17=1,L7,0) -> 0 | N21: =IF(Données!$B$17=2,L7,0) -> 1114074
B22: Novembre | N22: =IF(Données!$B$17=1,M7,0) -> 0 | O22: =IF(Données!$B$17=1,N7,0) -> 0
B23: Décembre | O23: =IF(Données!$B$17=2,M7,0) -> 1114074 | P23: =N7 -> 1114074 | Q23: =N7 -> 1114074
B24: Total encaissement | C24: =SUM(C12:C23) -> 600000 | D24: =SUM(D12:D23) -> 600000 | E24: =SUM(E12:E23) -> 371358 | F24: 371358 | G24: 371358 | H24: 4084938 | I24: 4084938 | J24: 4084938 | K24: 1856790 | L24: 1856790 | M24: 1856790 | N24: 1114074 | O24: 1114074

Sheet achat et décaissement
B1: achats
C2: janvier | D2: février | E2: mars | F2: avril | G2: mai | H2: juin | I2: juillet | J2: août | K2: septembre | L2: octobre | M2: novembre | N2: décembre
B3: achats planchas
B4: Achat HT | C4: =Données!$B$1*Données!$B$4*Données!$D$3 -> 249750 | D4: =Données!$B$1*Données!$B$4*Données!$D$3 -> 249750 | E4: =Données!$B$1*Données!$B$4*Données!$D$3 -> 249750 | F4: =Données!$B$1*Données!$B$4*Données!$E$3 -> 2747250 | G4: =Données!$B$1*Données!$B$4*Données!$E$3 -> 2747250 | H4: =Données!$B$1*Données!$B$4*Données!$E$3 -> 2747250 | I4: =Données!$B$1*Données!$B$4*Données!$G$3 -> 749250 | J4: =Données!$B$1*Données!$B$4*Données!$F$3 -> 1248750 | K4: =Données!$B$1*Données!$B$4*Données!$F$3 -> 1248750 | L4: =Données!$B$1*Données!$B$4*Données!$F$3 -> 1248750 | M4: =Données!$B$1*Données!$B$4*Données!$F$3 -> 1248750 | N4: =Données!$B$1*Données!$B$4*Données!$F$3 -> 1248750 | P4: =SUM(C4:N4) -> 15984000
B5: TVA | C5: =C4*Données!$B$6 -> 48951 | D5: =D4*Données!$B$6 -> 48951 | E5: =E4*Données!$B$6 -> 48951 | F5: =F4*Données!$B$6 -> 538461 | G5: =G4*Données!$B$6 -> 538461 | H5: =H4*Données!$B$6 -> 538461 | I5: =I4*Données!$B$6 -> 146853 | J5: =J4*Données!$B$6 -> 244755 | K5: =K4*Données!$B$6 -> 244755 | L5: =L4*Données!$B$6 -> 244755 | M5: =M4*Données!$B$6 -> 244755 | N5: =N4*Données!$B$6 -> 244755
B6: 0.196 | C6: =C4+C5 -> 298701 | D6: =D4+D5 -> 298701 | E6: 298701 | F6: 3285711 | G6: 3285711 | H6: 3285711 | I6: 896103 | J6: 1493505 | K6: 1493505 | L6: 1493505 | M6: 1493505 | N6: 1493505
B8: Budget des décaissements
C9: janvier | D9: février | E9: mars | F9: avril | G9: mai | H9: juin | I9: juillet | J9: août | K9: septembre | L9: octobre | M9: novembre | N9: décembre
B10: Loyers | C10: =Données!$B$9 -> 9000 | D10: =Données!$B$9 -> 9000 | E10: =Données!$B$9 -> 9000 | F10: =Données!$B$9 -> 9000 | G10: =Données!$B$9 -> 9000 | H10: =Données!$B$9 -> 9000 | I10: =Données!$B$9 -> 9000 | J10: =Données!$B$9 -> 9000 | K10: =Données!$B$9 -> 9000 | L10: =Données!$B$9 -> 9000 | M10: =Données!$B$9 -> 9000 | N10: =Données!$B$9 -> 9000 | P10: =SUM(C10:N10) -> 108000
B11: charges personnel | C11: =Données!$B$10 -> 35000 | D11: =Données!$B$10 -> 35000 | E11: =Données!$B$10 -> 35000 | F11: =Données!$B$10 -> 35000 | G11: =Données!$B$10 -> 35000 | H11: =Données!$B$10 -> 35000 | I11: =Données!$B$10 -> 35000 | J11: =Données!$B$10 -> 35000 | K11: =Données!$B$10 -> 35000 | L11: =Données!$B$10 -> 35000 | M11: =Données!$B$10 -> 35000 | N11: =Données!$B$10 -> 35000 | P11: =SUM(C11:N11) -> 420000
B12: TVA | D12: =TVA!B8 -> 11907 | E12: =TVA!C8 -> 11907 | F12: =TVA!D8 -> 11907 | G12: =TVA!E8 -> 130977 | H12: =TVA!F8 -> 130977 | I12: =TVA!G8 -> 130977 | J12: =TVA!H8 -> 157437 | K12: =TVA!I8 -> 59535 | L12: =TVA!J8 -> 59535 | M12: =TVA!K8 -> 0 | N12: =TVA!L8 -> 0 | O12: =TVA!M8 -> 0 | P12: 705159
B13: Impots et taxes | C13: =Données!$B$11 -> 2500 | D13: =Données!$B$11 -> 2500 | E13: =Données!$B$11 -> 2500 | F13: =Données!$B$11 -> 2500 | G13: =Données!$B$11 -> 2500 | H13: =Données!$B$11 -> 2500 | I13: =Données!$B$11 -> 2500 | J13: =Données!$B$11 -> 2500 | K13: =Données!$B$11 -> 2500 | L13: =Données!$B$11 -> 2500 | M13: =Données!$B$11 -> 2500 | N13: =Données!$B$11 -> 2500 | P13: 30000
A14: Achats | B14: Janvier | C14: 1000000 | D14: =C6 -> 298701 | O14: =N6 -> 1493505
B15: Fevrier | E15: =D6 -> 298701
B16: Mars | F16: =E6 -> 298701
B17: Avril | G17: =F6 -> 3285711
B18: Mai | H18: =G6 -> 3285711
B19: Juin | I19: =H6 -> 3285711
B20: Juillet | J20: =I6 -> 896103
B21: Août | K21: =J6 -> 1493505
B22: Septembre | L22: =K6 -> 1493505
B23: Octobre | M23: =L6 -> 1493505
B24: Novembre | N24: =M6 -> 1493505
B25: Décembre | O25: =N6 -> 1493505
B26: totaux décaissements | C26: =SUM(C10:C25) -> 1046500 | D26: =SUM(D10:D25) -> 357108 | E26: 357108 | F26: 357108 | G26: 3463188 | H26: 3463188 | I26: 3463188 | J26: 1100040 | K26: 1599540 | L26: 1599540 | M26: 1540005 | N26: 1540005 | O26: 2987010

Sheet TVA
A1: Budget de TVA
B3: janvier | C3: février | D3: mars | E3: avril | F3: mai | G3: juin | H3: juillet | I3: août | J3: septembre | K3: octobre | L3: novembre | M3: décembre | N3: janvier n+1
A4: TVA collectée | B4: ='ventes et encaissement'!C6 -> 60858 | C4: ='ventes et encaissement'!D6 -> 60858 | D4: ='ventes et encaissement'!E6 -> 60858 | E4: ='ventes et encaissement'!F6 -> 669438 | F4: ='ventes et encaissement'!G6 -> 669438 | G4: ='ventes et encaissement'!H6 -> 669438 | H4: ='ventes et encaissement'!I6 -> 304290 | I4: ='ventes et encaissement'!J6 -> 304290 | J4: ='ventes et encaissement'!K6 -> 304290 | K4: ='ventes et encaissement'!L6 -> 182574 | L4: ='ventes et encaissement'!M6 -> 182574 | M4: ='ventes et encaissement'!N6 -> 182574 | N4: ='ventes et encaissement'!O6 -> 0
A5: TVA déductible sur ABS | B5: ='achat et décaissement'!C5 -> 48951 | C5: ='achat et décaissement'!D5 -> 48951 | D5: ='achat et décaissement'!E5 -> 48951 | E5: ='achat et décaissement'!F5 -> 538461 | F5: ='achat et décaissement'!G5 -> 538461 | G5: ='achat et décaissement'!H5 -> 538461 | H5: ='achat et décaissement'!I5 -> 146853 | I5: ='achat et décaissement'!J5 -> 244755 | J5: ='achat et décaissement'!K5 -> 244755 | K5: ='achat et décaissement'!L5 -> 244755 | L5: ='achat et décaissement'!M5 -> 244755 | M5: ='achat et décaissement'!N5 -> 244755 | N5: ='achat et décaissement'!O5 -> 0
A6: TVA déductible sur immos
A7: report crédit tva | C7: =B9 -> 0 | D7: 0 | E7: 0 | F7: 0 | G7: 0 | H7: 0 | I7: 0 | J7: 0 | K7: 0 | L7: 62181 | M7: 124362 | N7: 186543
A8: tva à décaisser | B8: =IF(B4-(B5+B6+B7)>0,(B4-B5-B6-B7),0) -> 11907 | C8: 11907 | D8: 11907 | E8: 130977 | F8: 130977 | G8: 130977 | H8: 157437 | I8: 59535 | J8: 59535 | K8: 0 | L8: 0 | M8: 0 | N8: =IF(N4-(N5+N6+N7)>0,(N4-N5-N6-N7),0) -> 0
A9: crédit tva | B9: =IF(B4-(B5+B6+B7)<0,(B5+B6+B7)-B4,0) -> 0 | C9: 0 | D9: 0 | E9: 0 | F9: 0 | G9: 0 | H9: 0 | I9: 0 | J9: 0 | K9: 62181 | L9: 124362 | M9: 186543 | N9: =IF(N4-(N5+N6+N7)<0,(N5+N6+N7)-N4,0) -> 186543
A10: remboursement tva par état

Sheet Budget de trésorerie
A1: Budget de trésorerie
B2: janvier | C2: février | D2: mars | E2: avril | F2: mai | G2: juin | H2: juillet | I2: août | J2: septembre | K2: octobre | L2: novembre | M2: décembre
A3: Trésorerie initiale | B3: =Données!B14 -> 100000 | C3: =B6 -> -346500 | D3: =C6 -> -103608 | E3: -89358 | F3: -75108 | G3: -3166938 | H3: -2545188 | I3: -1923438 | J3: 1061460 | K3: 1318710 | L3: 1575960 | M3: 1892745
A4: Encaissements | B4: ='ventes et encaissement'!C24 -> 600000 | C4: ='ventes et encaissement'!D24 -> 600000 | D4: ='ventes et encaissement'!E24 -> 371358 | E4: ='ventes et encaissement'!F24 -> 371358 | F4: ='ventes et encaissement'!G24 -> 371358 | G4: ='ventes et encaissement'!H24 -> 4084938 | H4: ='ventes et encaissement'!I24 -> 4084938 | I4: ='ventes et encaissement'!J24 -> 4084938 | J4: ='ventes et encaissement'!K24 -> 1856790 | K4: ='ventes et encaissement'!L24 -> 1856790 | L4: ='ventes et encaissement'!M24 -> 1856790 | M4: ='ventes et encaissement'!N24 -> 1114074 | N4: ='ventes et encaissement'!M7 -> 1114074 | O4: ='ventes et encaissement'!N7 -> 1114074
A5: Décaissements | B5: ='achat et décaissement'!C26 -> 1046500 | C5: ='achat et décaissement'!D26 -> 357108 | D5: ='achat et décaissement'!E26 -> 357108 | E5: ='achat et décaissement'!F26 -> 357108 | F5: ='achat et décaissement'!G26 -> 3463188 | G5: ='achat et décaissement'!H26 -> 3463188 | H5: ='achat et décaissement'!I26 -> 3463188 | I5: ='achat et décaissement'!J26 -> 1100040 | J5: ='achat et décaissement'!K26 -> 1599540 | K5: ='achat et décaissement'!L26 -> 1599540 | L5: ='achat et décaissement'!M26 -> 1540005 | M5: ='achat et décaissement'!N26 -> 1540005
A6: Trésorerie finale | B6: =B3+B4-B5 -> -346500 | C6: =C3+C4-C5 -> -103608 | D6: -89358 | E6: -75108 | F6: -3166938 | G6: -2545188 | H6: -1923438 | I6: 1061460 | J6: 1318710 | K6: 1575960 | L6: 1892745 | M6: 1466814
B7: =B6/1000 -> -346.5 | C7: =C6/1000 -> -103.608 | D7: -89.358 | E7: -75.108 | F7: -3166.938 | G7: -2545.188 | H7: -1923.438 | I7: 1061.46 | J7: 1318.71 | K7: 1575.96 | L7: 1892.745 | M7: 1466.814

Sheet graphique

Sheet compte resultat
A2: Compte de résultat prévisionnel
A3: Charges | C3: produits
A4: Achats | B4: ='achat et décaissement'!P4 -> 15984000 | C4: Ventes | D4: ='ventes et encaissement'!$P$5 -> 18630000
A5: ='achat et décaissement'!B10 -> Loyers | B5: =SUM('achat et décaissement'!P10) -> 108000
A6: ='achat et décaissement'!B11 -> charges personnel | B6: =SUM('achat et décaissement'!P11) -> 420000
A7: ='achat et décaissement'!B13 -> Impots et taxes | B7: =SUM('achat et décaissement'!P13) -> 30000
B9: =SUM(B4:B8) -> 16542000
A10: résultat | B10: =D4-B9 -> 2088000
A13: compte résultat différentiel
A14: C affaires | B14: =D4 -> 18630000
A15: Charges variables | B15: =B4 -> 15984000
A16: Marge / cout variable | B16: =B14-B15 -> 2646000 | C16: =B16/B14 -> 0.1420289855
A17: Charges fixes | B17: =B5+B6+B7 -> 558000
A18: Résultat | B18: =B16-B17 -> 2088000
A20: seuil de rentabilité | B20: =(B14*B17)/B16 -> 3928775.51
A21: Nombre bbq | B21: =ROUNDDOWN(B20/Données!B3,0) -> 17081
A23: Point Mort | B23: =(B20/B14)*365 -> 1900-03-16T23:20:48.980
A25: Marge de sécurité | B25: =B14-B20 -> 14701224.49
A26: Indice de sécurité | B26: =(B25/B14) -> 0.7891156463
